fUSD/lending_fUSD_20250602
["ID","MTS","AMOUNT","RATE_DAILY","PERIOD"]
[363708655,1748833832567,-353.99,0.00019959,2]
[363708657,1748833832576,-353.99,0.00019959,2]
[363708658,1748833832586,-353.99,0.00019959,2]
[363708661,1748833832596,-146.6966466,0.00019959,2]
[363708665,1748833832608,-207.2933534,0.00019959,2]
[363708667,1748833832617,-353.99,0.00019959,2]
[363708670,1748833832627,-353.99,0.00019959,2]
[363708673,1748833832636,-353.99,0.00019959,2]
[363708675,1748833832646,-353.99,0.00019959,2]
[363708677,1748833832655,-353.99,0.00019959,2]
[363708679,1748833832665,-500.0,0.00019973,2]
[363708681,1748833832674,-206.07349728,0.00019973,2]
[363708683,1748833832684,-500.0,0.00019973,2]
[363708685,1748833832693,-500.0,0.00019973,2]
[363708687,1748833832702,-500.0,0.00019973,2]
[363708689,1748833832711,-552.21,0.00019988,2]
[363708691,1748833832722,-5764.47314932,0.0001999,2]
[363708988,1748833837438,-882.0,0.00019889,2]
[363708989,1748833837448,-963.83862819,0.0001999,2]
[363709157,1748833839684,-848.0,0.00019889,2]
[363709159,1748833839694,-82803.33855361,0.0001999,2]
[363709161,1748833839704,-903.869106,0.00019995,2]
[363709163,1748833839714,-297.43750599,0.00019995,2]
[363709164,1748833839723,-200.0,0.00019996,2]
[363709166,1748833839733,-178.423,0.00019996,2]
[363709168,1748833839743,-9237.4841189,0.00019996,2]
[363709170,1748833839752,-172.50689014,0.00019996,2]
[363709172,1748833839762,-128244.2897309,0.00019996,2]
[363709174,1748833839772,-12800.8029285,0.00019996,2]
[363709175,1748833839781,-2396.196809,0.00019996,2]
[363709177,1748833839791,-20692.1231512,0.00019996,2]
[363709180,1748833839802,-2000.0,0.00019997,2]
[363709181,1748833839811,-415.85062451,0.00019999,2]
[363709183,1748833839820,-552.46630125,0.00019999,2]
[363709185,1748833839830,-672.74919179,0.00019999,2]
[363709188,1748833839840,-2000.0,0.00019999,2]
[363709189,1748833839850,-2000.0,0.00019999,2]
[363709191,1748833839859,-2000.0,0.00019999,2]
[363709193,1748833839869,-2000.0,0.00019999,2]
[363709195,1748833839879,-2000.0,0.00019999,2]
[363709197,1748833839888,-2000.0,0.00019999,2]
[363709199,1748833839898,-1007.43004455,0.00019999,2]
[363709201,1748833839908,-1000.0,0.00019999,2]
[363709203,1748833839917,-2000.0,0.00019999,2]
[363709205,1748833839926,-2000.0,0.00019999,2]
[363709207,1748833839936,-500.0,0.00019999,2]
[363709209,1748833839945,-199.39118749,0.00019999,2]
[363709211,1748833839954,-202.74148412,0.00019999,2]
[363709213,1748833839964,-215.75696912,0.00019999,2]
[363709215,1748833839974,-332.55999737,0.00019999,2]
[363709218,1748833839983,-500.0,0.00019999,2]
[363709220,1748833839992,-165.98636087,0.00019999,2]
[363709222,1748833840002,-500.0,0.00019999,2]
[363709224,1748833840012,-500.0,0.00019999,2]
[363709226,1748833840022,-500.0,0.00019999,2]
[363709228,1748833840031,-314.54211904,0.00019999,2]
[363709230,1748833840041,-500.0,0.00019999,2]
[363709232,1748833840050,-500.0,0.00019999,2]
[363709234,1748833840060,-500.0,0.00019999,2]
[363709236,1748833840070,-500.0,0.00019999,2]
[363709238,1748833840080,-150.0,0.00019999,2]
[363709240,1748833840090,-150.0,0.00019999,2]
[363709242,1748833840099,-150.0,0.00019999,2]
[363709244,1748833840108,-150.0,0.00019999,2]
[363709246,1748833840117,-150.0,0.00019999,2]
[363709248,1748833840126,-150.0,0.00019999,2]
[363709250,1748833840136,-150.0,0.00019999,2]
[363709252,1748833840146,-150.0,0.00019999,2]
[363709254,1748833840156,-150.0,0.00019999,2]
[363709256,1748833840166,-150.0,0.00019999,2]
[363709258,1748833840175,-500.0,0.00019999,2]
[363709260,1748833840185,-234.36284043,0.00019999,2]
[363709262,1748833840194,-923.0,0.00019999,2]
[363709264,1748833840206,-150.0,0.0002,2]
[363709266,1748833840216,-183.411,0.0002,2]
[363709268,1748833840226,-150.915,0.0002,2]
[363709270,1748833840236,-150.401,0.0002,2]
[363709272,1748833840246,-150.0,0.0002,2]
[363709274,1748833840263,-150.172,0.0002,2]
[363709276,1748833840273,-154.905,0.0002,2]
[363709278,1748833840283,-943.0,0.0002,2]
[363709280,1748833840292,-1467.0,0.0002,2]
[363709282,1748833840301,-801.0,0.0002,2]
[363709284,1748833840311,-655.551,0.0002,2]
[363709286,1748833840320,-1271.0,0.0002,2]
[363709288,1748833840329,-588.0,0.0002,2]
[363709290,1748833840338,-925.0,0.0002,2]
[363709292,1748833840347,-557.0,0.0002,2]
[363709294,1748833840357,-2290.29345963,0.0002,2]
[363709296,1748833840366,-85531.41753212,0.0002,2]
[363709329,1748833842659,-500.0,0.00019995,2]
[363709330,1748833842668,-518.94985016,0.00019999,2]
[363709331,1748833842678,-114118.55222285,0.0002,2]
[363709359,1748833845432,-937.0,0.00019999,2]
[363709360,1748833845442,-2213.0,0.0002,2]
[363709366,1748833845487,-1377.8619351,0.0002,2]
[363709368,1748833845594,-484.83117088,0.0002,2]
[363709369,1748833845702,-1909.18728,0.0002,2]
[363709370,1748833845758,-5507.79477388,0.000199,2]
[363709371,1748833845768,-478692.69750799,0.0002,2]
[363709375,1748833860369,432.73,0.00017289,2]
[363709376,1748834069187,168.85,0.00018931,2]
[363709377,1748834250438,151.0,0.00018937,2]
[363709378,1748834449993,1000.0,0.0001887,2]
[363709379,1748834462350,244.31,0.0001887,2]
[363709380,1748834678318,150.0,0.00019001,2]
[363709382,1748834717885,207.75,0.00018876,2]
[363709385,1748834780874,342.06,0.00013699,2]
[363709387,1748834868329,482.6,0.00016946,2]
[363709402,1748835031659,-630.66960033,0.0001902,2]
[363709403,1748835031671,-712.19058042,0.0001902,2]
[363709404,1748835031680,-75.37717023,0.00019026,2]
[363709405,1748835031741,-174.62282977,0.00019026,2]
[363709406,1748835031750,-1200.0,0.00019032,2]
[363709407,1748835031759,-300.0,0.00019032,2]
[363709408,1748835031768,-1000.0,0.00019033,2]
[363709409,1748835031777,-1000.0,0.00019033,2]
[363709410,1748835031787,-131.79560984,0.00019033,2]
[363709411,1748835031798,-868.20439016,0.00019033,2]
[363709412,1748835031807,-1000.0,0.00019033,2]
[363709413,1748835031817,-971.21557984,0.00019033,2]
[363709414,1748835031828,-28.78442016,0.00019033,2]
[363709415,1748835031837,-1000.0,0.00019033,2]
[363709416,1748835031847,-1000.0,0.00019033,2]
[363709417,1748835031856,-1000.0,0.00019033,2]
[363709418,1748835031865,-1000.0,0.00019033,2]
[363709419,1748835031875,-1000.0,0.00019033,2]
[363709420,1748835031886,-1000.0,0.00019033,2]
[363709421,1748835031895,-1000.0,0.00019033,2]
[363709422,1748835031904,-1000.0,0.00019033,2]
[363709423,1748835031913,-1000.0,0.00019033,2]
[363709424,1748835031922,-1000.0,0.00019033,2]
[363709425,1748835031933,-451.21557984,0.00019033,2]
[363709426,1748835031945,-548.78442016,0.00019033,2]
[363709427,1748835031954,-14.95133774,0.00019033,2]
[363709428,1748835031966,-420.419998,0.00019033,2]
[363709429,1748835031987,-564.62866426,0.00019033,2]
[363709430,1748835031996,-37.61002306,0.00019033,2]
[363709431,1748835032007,-962.38997694,0.00019033,2]
[363709432,1748835032016,-799.07797031,0.00019033,2]
[363709435,1748835037530,-200.92202969,0.00019033,2]
[363709436,1748835037539,-218.27797031,0.00019033,2]
[363709470,1748835037797,-781.72202969,0.00019033,2]
[363709472,1748835037806,-1000.0,0.00019033,2]
[363709474,1748835037816,-1000.0,0.00019033,2]
[363709476,1748835037825,-1000.0,0.00019033,2]
[363709478,1748835037834,-199.64,0.00019033,2]
[363709480,1748835037843,-500.0,0.00019129,2]
[363709482,1748835037853,-420.0,0.00019178,2]
[363709484,1748835037862,-426.63229321,0.00019178,2]
[363709486,1748835037872,-156.8189371,0.00019178,2]
[363709489,1748835037882,-428.73219862,0.00019178,2]
[363709491,1748835037895,-363.81012571,0.00019178,2]
[363709493,1748835037904,-449.85288931,0.00019178,2]
[363709495,1748835037913,-450.94,0.00019178,2]
[363709497,1748835037923,-420.0,0.00019178,2]
[363709499,1748835037933,-420.0,0.00019178,2]
[363709501,1748835037943,-284.39255125,0.00019178,2]
[363709502,1748835037952,-454.91950307,0.00019178,2]
[363709505,1748835037963,-420.0,0.00019178,2]
[363709506,1748835037971,-420.0,0.00019178,2]
[363709508,1748835037981,-420.0,0.00019178,2]
[363709510,1748835037990,-420.0,0.00019178,2]
[363709512,1748835037999,-487.70721073,0.00019178,2]
[363709514,1748835038009,-420.0,0.00019178,2]
[363709516,1748835038018,-439.79192298,0.00019178,2]
[363709518,1748835038028,-243.77626892,0.00019178,2]
[363709520,1748835038037,-420.0,0.00019178,2]
[363709522,1748835038047,-972.61,0.00019178,2]
[363709524,1748835038056,-265.79613955,0.00019178,2]
[363709526,1748835038066,-436.22901551,0.00019178,2]
[363709528,1748835038075,-420.0,0.00019178,2]
[363709530,1748835038085,-423.21801996,0.00019178,2]
[363709532,1748835038095,-420.0,0.00019178,2]
[363709534,1748835038105,-420.0,0.00019178,2]
[363709536,1748835038114,-202.27133025,0.00019178,2]
[363709538,1748835038124,-320.6118841,0.00019178,2]
[363709540,1748835038133,-325.67996638,0.00019178,2]
[363709543,1748835038143,-511.3472475,0.00019178,2]
[363709546,1748835038153,-396.67423209,0.00019178,2]
[363709548,1748835038163,-420.0,0.00019178,2]
[363709551,1748835038173,-300.89734985,0.00019178,2]
[363709552,1748835038182,-300.60456149,0.00019178,2]
[363709554,1748835038191,-482.6,0.0001921,2]
[363709556,1748835038201,-420.0,0.00019315,2]
[363709559,1748835038210,-167.44262966,0.00019315,2]
[363709560,1748835038220,-150.60406995,0.00019315,2]
[363709562,1748835038229,-420.0,0.00019315,2]
[363709564,1748835038239,-420.0,0.00019315,2]
[363709566,1748835038248,-420.0,0.00019315,2]
[363709568,1748835038258,-177.77962097,0.00019315,2]
[363709570,1748835038267,-972.61,0.00019315,2]
[363709572,1748835038276,-420.0,0.00019315,2]
[363709574,1748835038285,-420.0,0.00019315,2]
[363709576,1748835038295,-420.0,0.00019315,2]
[363709578,1748835038304,-420.0,0.00019452,2]
[363709580,1748835038313,-420.0,0.00019452,2]
[363709582,1748835038323,-420.0,0.00019452,2]
[363709584,1748835038332,-209.26775034,0.00019452,2]
[363709586,1748835038342,-972.61,0.00019452,2]
[363709588,1748835038352,-420.0,0.00019452,2]
[363709590,1748835038362,-420.0,0.00019452,2]
[363709592,1748835038371,-420.0,0.00019452,2]
[363709594,1748835038380,-9820.0,0.00019463,7]
[363709596,1748835038389,-207.4,0.00019488,2]
[363709598,1748835038400,-880.64417203,0.000195,2]
[363709601,1748835038416,-300.0,0.000195,2]
[363709728,1748835039646,-5456.69443183,0.000195,2]
[363709729,1748835039657,-26695.66139614,0.000195,2]
[363709730,1748835039667,-339.01892394,0.00019589,2]
[363709731,1748835039676,-510.85679231,0.00019589,2]
[363709732,1748835039686,-404.89898453,0.00019589,2]
[363709733,1748835039696,-972.61,0.00019589,2]
[363709735,1748835039705,-420.0,0.00019589,2]
[363709737,1748835039715,-420.0,0.00019589,2]
[363709739,1748835039724,-420.0,0.00019589,2]
[363709741,1748835039734,-983.290067,0.00019599,2]
[363709743,1748835039743,-460.54,0.000196,2]
[363709745,1748835039752,-460.54,0.000196,2]
[363709747,1748835039761,-460.54,0.000196,2]
[363709749,1748835039771,-353.99,0.000196,2]
[363709751,1748835039780,-460.54,0.000196,2]
[363709753,1748835039790,-460.54,0.000196,2]
[363709755,1748835039799,-972.61,0.00019726,2]
[363709757,1748835039809,-420.0,0.00019726,2]
[363709759,1748835039818,-420.0,0.00019726,2]
[363709761,1748835039828,-156.04690002,0.00019726,2]
[363709763,1748835039837,-593.5,0.000198,2]
[363709765,1748835039847,-460.54,0.000198,2]
[363709767,1748835039856,-465.97,0.000198,2]
[363709769,1748835039866,-460.54,0.000198,2]
[363709771,1748835039875,-460.22,0.000198,2]
[363709773,1748835039886,-460.54,0.000198,2]
[363709774,1748835039896,-200.0,0.00019839,2]
[363709776,1748835039905,-200.0,0.0001984,2]
[363709779,1748835039915,-972.61,0.00019863,2]
[363709781,1748835039926,-420.0,0.00019863,2]
[363709783,1748835039936,-420.0,0.00019863,2]
[363709785,1748835039945,-699.67270435,0.00019895,2]
[363709787,1748835039954,-699.67270433,0.00019896,2]
[363709788,1748835039964,-699.67270433,0.00019896,2]
[363709790,1748835039974,-699.67270433,0.00019897,2]
[363709792,1748835039983,-699.67270433,0.00019897,2]
[363709794,1748835039992,-699.67270433,0.00019898,2]
[363709796,1748835040001,-492.76335334,0.00019898,2]
[363709798,1748835040011,-166.01416729,0.00019898,2]
[363709800,1748835040020,-492.76335331,0.00019898,2]
[363709802,1748835040030,-699.67270433,0.00019898,2]
[363709804,1748835040040,-492.76335331,0.00019898,2]
[363709806,1748835040050,-492.76335331,0.00019899,2]
[363709809,1748835040060,-492.76335331,0.00019899,2]
[363709812,1748835040070,-699.67270433,0.00019899,2]
[363709815,1748835040079,-492.76335331,0.00019899,2]
[363709818,1748835040088,-492.76335331,0.00019899,2]
[363709821,1748835040097,-699.67270433,0.00019899,2]
[363709824,1748835040109,-492.76335331,0.000199,2]
[363709827,1748835040119,-492.76335331,0.000199,2]
[363709830,1748835040129,-460.54,0.000199,2]
[363709833,1748835040138,-25555.0,0.000199,2]
[363709835,1748835040147,-460.54,0.000199,2]
[363709838,1748835040157,-5331.03252028,0.000199,2]
[363709840,1748835040166,-492.76335331,0.000199,2]
[363709842,1748835040176,-232.65267386,0.000199,2]
[363709844,1748835040185,-1240.085,0.0001994,2]
[363709847,1748835040195,-353.99,0.00019959,2]
[363709849,1748835040204,-500.0,0.00019973,2]
[363709851,1748835040213,-500.0,0.00019973,2]
[363709853,1748835040224,-500.0,0.00019973,2]
[363709855,1748835040233,-1000.0,0.00019988,2]
[363709857,1748835040243,-1000.0,0.00019988,2]
[363709859,1748835040252,-1000.0,0.00019988,2]
[363709861,1748835040262,-220.73840937,0.00019995,2]
[363709863,1748835040276,-241.214195,0.00019995,2]
[363709865,1748835040285,-1810.1483676,0.00019996,2]
[363709867,1748835040295,-121656.8175896,0.00019996,2]
[363709869,1748835040304,-12733.3644265,0.00019996,2]
[363709871,1748835040313,-7346.5976751,0.00019996,2]
[363709873,1748835040323,-500.0,0.00019996,2]
[363709875,1748835040331,-1825.92999305,0.00019996,2]
[363709877,1748835040341,-468.31692576,0.00019996,2]
[363709879,1748835040350,-1825.92999305,0.00019996,2]
[363709881,1748835040359,-1825.92999305,0.00019996,2]
[363709883,1748835040369,-1825.92999305,0.00019996,2]
[363709885,1748835040378,-1825.92999305,0.00019996,2]
[363709887,1748835040388,-1825.92999305,0.00019996,2]
[363709889,1748835040397,-1825.92999305,0.00019996,2]
[363709891,1748835040405,-1825.92999305,0.00019996,2]
[363709893,1748835040416,-1825.92999305,0.00019996,2]
[363709895,1748835040425,-1825.92999305,0.00019996,2]
[363709897,1748835040434,-1825.92999305,0.00019996,2]
[363709899,1748835040444,-1825.92999305,0.00019996,2]
[363709901,1748835040453,-1825.92999305,0.00019996,2]
[363709903,1748835040462,-1825.92999305,0.00019996,2]
[363709905,1748835040471,-1825.92999305,0.00019996,2]
[363709907,1748835040480,-1825.92999305,0.00019996,2]
[363709909,1748835040489,-1825.92999305,0.00019996,2]
[363709911,1748835040499,-1825.92999305,0.00019996,2]
[363709913,1748835040507,-1825.92999305,0.00019996,2]
[363709915,1748835040517,-1825.92999305,0.00019996,2]
[363709917,1748835040526,-1825.92999305,0.00019996,2]
[363709919,1748835040536,-1825.92999305,0.00019996,2]
[363709921,1748835040544,-1825.92999305,0.00019996,2]
[363709923,1748835040553,-1825.92999305,0.00019996,2]
[363709925,1748835040562,-1825.92999305,0.00019996,2]
[363709927,1748835040571,-1825.92999305,0.00019996,2]
[363709929,1748835040581,-1825.92999305,0.00019996,2]
[363709931,1748835040590,-1825.92999305,0.00019996,2]
[363709933,1748835040600,-1825.92999305,0.00019996,2]
[363709935,1748835040609,-1825.92999305,0.00019996,2]
[363709938,1748835040628,-1825.92999305,0.00019996,2]
[363709940,1748835040640,-1825.92999305,0.00019996,2]
[363709942,1748835040649,-1825.92999305,0.00019996,2]
[363709944,1748835040659,-1825.92999305,0.00019996,2]
[363709946,1748835040668,-1825.92999305,0.00019996,2]
[363709948,1748835040678,-1825.92999305,0.00019996,2]
[363709950,1748835040688,-1058.95212607,0.00019996,2]
[363709953,1748835040706,-731.8041,0.00019996,2]
[363709955,1748835040719,-35.17376698,0.00019996,2]
[363709957,1748835040728,-416.80000122,0.00019996,2]
[363709960,1748835040740,-1409.12999183,0.00019996,2]
[363709962,1748835040750,-1677.79226724,0.00019996,2]
[363709964,1748835040761,-148.13772581,0.00019996,2]
[363709965,1748835040770,-1825.92999305,0.00019996,2]
[363709967,1748835040780,-1825.92999305,0.00019996,2]
[363709969,1748835040789,-1825.92999305,0.00019996,2]
[363709971,1748835040799,-1825.92999305,0.00019996,2]
[363709972,1748835040808,-1825.92999305,0.00019996,2]
[363709974,1748835040818,-1825.92999305,0.00019996,2]
[363709976,1748835040828,-1825.92999305,0.00019996,2]
[363709978,1748835040837,-1825.92999305,0.00019996,2]
[363709980,1748835040846,-1049.01809468,0.00019996,2]
[363709982,1748835040858,-776.91189837,0.00019996,2]
[363709983,1748835040868,-1825.92999305,0.00019996,2]
[363709985,1748835040878,-1825.92999305,0.00019996,2]
[363709987,1748835040890,-1825.92999305,0.00019996,2]
[363709989,1748835040899,-1825.92999305,0.00019996,2]
[363709990,1748835040908,-2461.74403581,0.00019997,2]
[363709991,1748835040918,-14445.475857,0.00019997,2]
[363709992,1748835040931,-33579.01803451,0.00019997,2]
[363709993,1748835040942,-8387.80365827,0.00019997,2]
[363709995,1748835042596,-699.67270433,0.000199,2]
[363709996,1748835042607,-1689.7651151,0.00019997,2]
[363709997,1748835042649,-5187.34239769,0.00019997,2]
[363709998,1748835042757,-1033.2,0.00019997,2]
[363709999,1748835042810,-139725.02010471,0.00019997,2]
[363710005,1748835045648,-24977.0911081,0.00019997,2]
[363710006,1748835045660,-1044.95198197,0.00019997,2]
[363710007,1748835045702,-625.89371273,0.00019997,2]
[363710008,1748835045714,-5635.6872579,0.00019997,2]
[363710009,1748835045725,-2462.54982,0.00019997,2]
[363710010,1748835045863,-3070.27,0.00019997,2]
[363710011,1748835045917,-3144.0,0.00019997,2]
[363710012,1748835045974,-611.59150514,0.00019997,2]
[363710046,1748835542877,1000.0,0.00018983,2]
[363710047,1748835654027,150.0,0.00018974,7]
[363710050,1748835833395,249.05815964,0.00013699,2]
[363710051,1748835833424,86.43184036,0.00013699,2]
[363710052,1748835837661,351.85,0.00018963,2]
[363710057,1748835909939,200.02,0.00019001,2]
[363710058,1748835949225,434.34,0.00017034,2]
[363710065,1748836231855,-206.07411129,0.00019077,2]
[363710066,1748836231865,-218.73680622,0.0001909,2]
[363710067,1748836232011,-31.26319378,0.0001909,2]
[363710068,1748836232022,-300.0,0.00019177,2]
[363710069,1748836232031,-1000.36240172,0.00019177,2]
[363710070,1748836232066,-199.63759828,0.00019177,2]
[363710071,1748836232076,-179.79874952,0.00019178,2]
[363710081,1748836237748,-549.66125048,0.00019178,2]
[363710082,1748836237758,-196.07512263,0.00019178,2]
[363710083,1748836237768,-303.46362689,0.00019178,2]
[363710084,1748836237780,-109.46437969,0.00019178,2]
[363710085,1748836237789,-487.54447142,0.00019178,2]
[363710086,1748836237799,-5.53580958,0.00019178,2]
[363710087,1748836237811,-414.46419042,0.00019178,2]
[363710088,1748836237820,-420.0,0.00019178,2]
[363710089,1748836237830,-196.93580958,0.00019298,2]
[363710090,1748836237854,-237.40419042,0.00019298,2]
[363710091,1748836237863,-729.46,0.00019315,2]
[363710092,1748836237872,-420.0,0.00019315,2]
[363710093,1748836237882,-420.0,0.00019315,2]
[363710094,1748836237891,-729.46,0.00019452,2]
[363710095,1748836237900,-420.0,0.00019452,2]
[363710096,1748836237910,-420.0,0.00019452,2]
[363710097,1748836237919,-309.08267928,0.00019589,2]
[363710262,1748836239838,-420.37732072,0.00019589,2]
[363710263,1748836239848,-420.0,0.00019589,2]
[363710265,1748836239857,-420.0,0.00019589,2]
[363710267,1748836239867,-884.96106,0.00019599,2]
[363710269,1748836239876,-207.4,0.00019688,2]
[363710271,1748836239886,-1613.28,0.000197,2]
[363710273,1748836239895,-150.0,0.000197,2]
[363710275,1748836239907,-460.54,0.000197,2]
[363710277,1748836239918,-5742.30153841,0.000197,2]
[363710279,1748836239931,-262.14789678,0.00019726,2]
[363710286,1748836239994,-467.31210322,0.00019726,2]
[363710288,1748836240003,-420.0,0.00019726,2]
[363710290,1748836240013,-420.0,0.00019726,2]
[363710292,1748836240023,-250.52266372,0.00019771,2]
[363710294,1748836240032,-205.0,0.00019796,2]
[363710296,1748836240041,-200.0,0.0001984,2]
[363710298,1748836240051,-729.46,0.00019863,2]
[363710300,1748836240060,-420.0,0.00019863,2]
[363710302,1748836240070,-420.0,0.00019863,2]
[363710304,1748836240079,-1000.0,0.00019884,2]
[363710306,1748836240089,-2541.2312793,0.000199,2]
[363710308,1748836240100,-45245.09756348,0.000199,2]
[363710310,1748836240109,-5153.33143629,0.000199,2]
[363710312,1748836240119,-992.068,0.00019916,2]
[363710314,1748836240128,-1000.0,0.00019949,2]
[363710315,1748836240137,-150.0,0.00019955,2]
[363710317,1748836240147,-300.48,0.00019959,2]
[363710319,1748836240156,-445.91,0.00019959,2]
[363710321,1748836240165,-353.99,0.00019959,2]
[363710323,1748836240175,-500.0,0.00019973,2]
[363710325,1748836240184,-500.0,0.00019973,2]
[363710327,1748836240194,-500.0,0.00019973,2]
[363710329,1748836240203,-500.0,0.00019973,2]
[363710331,1748836240212,-155.32,0.00019985,2]
[363710333,1748836240222,-155.32,0.00019985,2]
[363710335,1748836240231,-155.32,0.00019989,2]
[363710337,1748836240240,-155.32,0.0001999,2]
[363710339,1748836240249,-155.32,0.0001999,2]
[363710341,1748836240259,-155.32,0.0001999,2]
[363710343,1748836240268,-155.32,0.0001999,2]
[363710345,1748836240278,-155.32,0.0001999,2]
[363710347,1748836240288,-155.32,0.0001999,2]
[363710349,1748836240298,-155.32,0.0001999,2]
[363710351,1748836240307,-155.32,0.0001999,2]
[363710353,1748836240317,-155.32,0.0001999,2]
[363710355,1748836240327,-155.32,0.0001999,2]
[363710357,1748836240336,-155.32,0.0001999,2]
[363710359,1748836240346,-155.32,0.0001999,2]
[363710361,1748836240355,-155.32,0.0001999,2]
[363710363,1748836240365,-155.32,0.0001999,2]
[363710365,1748836240374,-155.32,0.0001999,2]
[363710366,1748836240391,-155.32,0.0001999,2]
[363710368,1748836240400,-155.32,0.0001999,2]
[363710370,1748836240410,-6502.5209436,0.00019992,2]
[363710372,1748836240422,-15941.8542359,0.00019992,2]
[363710374,1748836240431,-1542.1117145,0.00019992,2]
[363710376,1748836240441,-136145.3965129,0.00019992,2]
[363710378,1748836240451,-417.299537,0.00019992,2]
[363710380,1748836240460,-220.73840937,0.00019993,2]
[363710382,1748836240469,-500.0,0.00019994,2]
[363710384,1748836240479,-1786.31160918,0.00019994,2]
[363710386,1748836240494,-1786.31160918,0.00019994,2]
[363710388,1748836240503,-468.31692576,0.00019994,2]
[363710390,1748836240513,-1786.31160918,0.00019994,2]
[363710392,1748836240523,-1786.31160918,0.00019994,2]
[363710395,1748836240534,-1786.31160918,0.00019994,2]
[363710396,1748836240543,-1786.31160918,0.00019994,2]
[363710397,1748836240552,-1786.31160918,0.00019994,2]
[363710398,1748836240561,-1786.31160918,0.00019994,2]
[363710399,1748836240571,-1786.31160918,0.00019994,2]
[363710400,1748836240580,-1786.31160918,0.00019994,2]
[363710401,1748836240589,-1786.31160918,0.00019994,2]
[363710402,1748836240598,-1786.31160918,0.00019994,2]
[363710403,1748836240608,-1786.31160918,0.00019994,2]
[363710404,1748836240618,-1786.31160918,0.00019994,2]
[363710405,1748836240627,-1786.31160918,0.00019994,2]
[363710406,1748836240636,-1786.31160918,0.00019994,2]
[363710407,1748836240645,-1786.31160918,0.00019994,2]
[363710408,1748836240654,-1786.31160918,0.00019994,2]
[363710409,1748836240663,-1786.31160918,0.00019994,2]
[363710410,1748836240672,-1786.31160918,0.00019994,2]
[363710412,1748836240682,-1786.31160918,0.00019994,2]
[363710414,1748836240691,-1786.31160918,0.00019994,2]
[363710416,1748836240701,-1786.31160918,0.00019994,2]
[363710418,1748836240711,-1786.31160918,0.00019994,2]
[363710420,1748836240720,-1786.31160918,0.00019994,2]
[363710421,1748836240730,-1786.31160918,0.00019994,2]
[363710423,1748836240740,-1786.31160918,0.00019994,2]
[363710424,1748836240749,-1786.31160918,0.00019994,2]
[363710425,1748836240759,-1786.31160918,0.00019994,2]
[363710426,1748836240768,-1786.31160918,0.00019994,2]
[363710427,1748836240777,-1786.31160918,0.00019994,2]
[363710428,1748836240787,-1786.31160918,0.00019994,2]
[363710429,1748836240796,-1786.31160918,0.00019994,2]
[363710430,1748836240806,-1786.31160918,0.00019994,2]
[363710431,1748836240815,-1786.31160918,0.00019994,2]
[363710432,1748836240825,-1786.31160918,0.00019994,2]
[363710433,1748836240835,-1786.31160918,0.00019994,2]
[363710434,1748836240844,-1786.31160918,0.00019994,2]
[363710435,1748836240854,-1786.31160918,0.00019994,2]
[363710436,1748836240864,-1786.31160918,0.00019994,2]
[363710437,1748836240874,-1786.31160918,0.00019994,2]
[363710438,1748836240883,-1786.31160918,0.00019994,2]
[363710439,1748836240892,-1786.31160918,0.00019994,2]
[363710440,1748836240902,-1786.31160918,0.00019994,2]
[363710441,1748836240912,-1786.31160918,0.00019994,2]
[363710442,1748836240921,-1786.31160918,0.00019994,2]
[363710443,1748836240931,-1786.31160918,0.00019994,2]
[363710444,1748836240940,-1786.31160918,0.00019994,2]
[363710445,1748836240950,-1786.31160918,0.00019994,2]
[363710446,1748836240959,-1786.31160918,0.00019994,2]
[363710447,1748836240969,-1786.31160918,0.00019994,2]
[363710448,1748836240978,-1786.31160918,0.00019994,2]
[363710449,1748836240987,-1786.31160918,0.00019994,2]
[363710450,1748836240997,-1786.31160918,0.00019994,2]
[363710451,1748836241006,-1786.31160918,0.00019994,2]